bitfinex-derivatives/quotes_SOLF0:USTF0_20250216
["timestamp","ask_amount","ask_price","bid_price","bid_amount"]
[1739685108341,3.5806,195.47,195.44,0.03583795]
[1739685108939,7.278131,195.48,195.44,0.03583795]
[1739685109233,3.5808,195.46,195.44,0.03583795]
[1739685111340,7.27634603,195.48,195.44,0.03583795]
[1739685112040,3.61638282,195.48,195.44,0.03583795]
[1739685115646,7.23978148,195.47,195.44,0.03583795]
[1739685116440,10.82068148,195.45,195.44,0.03583795]
[1739685123753,3.5816,195.42,195.36,3.5825]
[1739685123947,10.82138148,195.42,195.36,3.5825]
[1739685124557,7.23978148,195.42,195.36,3.5825]
[1739685124852,3.62019223,195.41,195.37,0.03617701]
[1739685125152,0.03849223,195.41,195.37,0.03617701]
[1739685125555,3.62029223,195.41,195.37,0.03617701]
[1739685125752,0.03849223,195.41,195.37,0.03617701]
[1739685126649,3.62009223,195.41,195.37,0.03617701]
[1739685127155,0.03849223,195.41,195.37,3.61857701]
[1739685127844,3.62019223,195.41,195.37,0.03617701]
[1739685128553,0.03849223,195.41,195.37,0.03617701]
[1739685128956,7.23978148,195.4,195.37,0.03617701]
[1739685129458,3.582,195.39,195.37,0.03617701]
[1739685130348,7.23978148,195.4,195.37,0.03617701]
[1739685130555,10.82198148,195.38,195.37,0.03617701]
[1739685130750,7.23978148,195.4,195.37,0.03617701]
[1739685131156,3.582,195.39,195.37,0.03617701]
[1739685131459,7.23978148,195.4,195.37,0.03617701]
[1739685133060,3.5822,195.39,195.37,0.03617701]
[1739685134666,3.5822,195.38,195.37,0.03617701]
[1739685134861,10.82198148,195.38,195.37,0.03617701]
[1739685136769,10.82198148,195.38,195.37,7.701e-05]
[1739685145472,3.5833,195.33,195.27,7.23978148]
[1739685145675,3.5833,195.33,195.25,10.40678148]
[1739685146076,3.5833,195.33,195.28,3.584]
[1739685146673,0.03397378,195.32,195.29,0.03856575]
[1739685150277,0.03397378,195.32,195.29,7.27834723]
[1739685152278,0.03397378,195.32,195.31,3.5835]
[1739685154076,7.23978148,195.4,195.31,7.23978148]
[1739685154776,7.23978148,195.38,195.32,3.5832]
[1739685155285,0.03864974,195.37,195.33,0.03482037]
[1739685156086,3.62104974,195.37,195.33,0.03482037]
[1739685156580,0.03864974,195.37,195.33,0.03482037]
[1739685156781,3.5828,195.35,195.33,0.03482037]
[1739685157483,3.5826,195.36,195.33,0.03482037]
[1739685157682,7.23978148,195.36,195.33,0.03482037]
[1739685158089,10.82268148,195.34,195.33,0.03482037]
[1739685205317,3.5836,195.31,195.25,3.5845]
[1739685205519,7.23978148,195.3,195.22,7.23978148]
[1739685206017,7.23978148,195.3,195.25,3.5844]
[1739685206517,0.03230178,195.29,195.26,0.03384563]
[1739685209221,0.03230178,195.29,195.26,3.61824563]
[1739685210221,0.03230178,195.29,195.26,0.03384563]
[1739685213423,0.03230178,195.29,195.26,3.61824563]
[1739685215525,3.5841,195.28,195.26,0.03384563]
[1739685220324,0.03230178,195.29,195.26,0.03384563]
[1739685220520,0.03230178,195.29,195.26,7.27362711]
[1739685220725,7.23978148,195.34,195.26,7.27362711]
[1739685221020,3.5834,195.32,195.27,1.6631]
[1739685221524,10.82318148,195.32,195.27,1.6631]
[1739685221827,0.03449501,195.31,195.27,1.6631]
[1739685222028,0.03449501,195.31,195.27,5.2473]
[1739685223929,0.03449501,195.31,195.27,1.6631]
[1739685224130,0.03449501,195.31,195.28,3.584]
[1739685239150,0.03449501,195.31,195.27,1.6631]
[1739685239343,0.03449501,195.31,195.27,5.2473]
[1739685240240,0.03449501,195.31,195.27,1.6631]
[1739685240440,0.03449501,195.31,195.28,3.5839]
[1739685248855,0.03449501,195.31,195.27,5.2473]
[1739685250859,0.03449501,195.31,195.27,1.6631]
[1739685251060,0.03449501,195.31,195.28,3.584]
[1739685251262,0.03449501,195.31,195.27,1.6631]
[1739685252056,0.03449501,195.31,195.27,5.2471]
[1739685257165,0.03449501,195.31,195.28,3.584]
[1739685259068,0.03449501,195.31,195.27,5.2473]
[1739685260862,0.03449501,195.31,195.27,1.6631]
[1739685261065,0.03449501,195.31,195.3,3.5837]
[1739685285777,0.03449501,195.31,195.28,1.6345]
[1739685286082,0.03449501,195.31,195.27,6.8718]
[1739685286378,0.03449501,195.31,195.27,3.2876]
[1739685286681,7.23978148,195.3,195.27,3.2876]
[1739685288280,7.23978148,195.3,195.27,6.8718]
[1739685289382,7.23978148,195.3,195.27,5.2087]
[1739685289681,7.23978148,195.3,195.27,1.6245]
[1739685290282,7.23978148,195.3,195.27,5.2087]
[1739685291483,7.23978148,195.3,195.27,1.6245]
[1739685291682,7.23978148,195.3,195.28,3.584]
[1739685294984,7.23978148,195.3,195.27,1.6245]
[1739685295174,7.23978148,195.3,195.27,5.2087]
[1739685297485,0.03449501,195.31,195.27,1.6245]
[1739685297685,0.03449501,195.31,195.3,3.5837]
[1739685301287,0.03449501,195.31,195.3,10.82348148]
[1739685301496,10.82218148,195.37,195.31,3.5834]
[1739685301888,3.5824,195.37,195.31,3.5834]
[1739685302090,3.5826,195.36,195.3,10.82338148]
[1739685302687,0.03261012,195.35,195.31,0.03459166]
[1739685305295,3.61531012,195.35,195.31,0.03459166]
[1739685307196,3.61531012,195.35,195.31,3.61799166]
[1739685307698,3.61531012,195.35,195.31,0.03459166]
[1739685308499,0.03261012,195.35,195.31,0.03459166]
[1739685308701,3.583,195.34,195.31,0.03459166]
[1739685309606,0.03261012,195.35,195.31,0.03459166]
[1739685309899,3.5833,195.33,195.31,0.03459166]
[1739685310399,3.5829,195.34,195.31,0.03459166]
[1739685312602,3.5831,195.33,195.31,0.03459166]
[1739685319307,7.23978148,195.33,195.31,0.03459166]
[1739685319507,3.5833,195.32,195.31,0.03459166]
[1739685325812,3.5833,195.32,195.31,9.166e-05]
[1739685357534,7.23978148,195.33,195.24,71.09394301]
[1739685357838,7.23978148,195.27,195.24,71.09394301]
[1739685358429,3.5844,195.26,195.24,71.09394301]
[1739685359638,7.27730669,195.27,195.24,71.09394301]
[1739685360136,3.5846,195.26,195.24,71.09394301]
[1739685360338,7.27730669,195.27,195.24,71.09394301]
[1739685360541,7.27730669,195.27,195.23,0.03389449]
[1739685360730,0.03752521,195.27,195.23,0.03389449]
[1739685361639,0.03752521,195.27,195.24,3.5847]
[1739685364935,0.03752521,195.27,195.25,3.5846]
[1739685367644,0.03752521,195.27,195.24,7.23978148]
[1739685367942,0.03752521,195.27,195.23,3.61869449]
[1739685368841,3.62172521,195.27,195.23,0.03389449]
[1739685369844,0.03752521,195.27,195.23,0.03389449]
[1739685370045,3.5846,195.26,195.23,0.03389449]
[1739685370543,3.5846,195.25,195.23,0.03389449]
[1739685371644,0.03752521,195.27,195.23,0.03389449]
[1739685371843,3.5844,195.26,195.23,0.03389449]
[1739685375243,0.03752521,195.27,195.23,0.03389449]
[1739685375451,3.5848,195.24,195.23,0.03389449]
[1739685378043,7.23978148,195.25,195.23,0.03389449]
[1739685378242,3.5847,195.25,195.23,0.03389449]
[1739685379153,3.5848,195.24,195.23,0.03389449]
[1739685384460,7.23978148,195.25,195.16,1.5524]
[1739685384659,7.23978148,195.2,195.16,1.5524]
[1739685384859,7.23978148,195.22,195.17,3.586]
[1739685385761,0.03770172,195.21,195.18,0.03422358]
[1739685388863,3.5857,195.19,195.18,0.03422358]
[1739685390866,10.82528148,195.2,195.18,0.03422358]
[1739685392162,7.23978148,195.2,195.18,0.03422358]
[1739685392357,3.5857,195.19,195.18,0.03422358]
[1739685393867,0.03770172,195.21,195.18,0.03422358]
[1739685394062,3.62300172,195.21,195.18,0.03422358]
[1739685394369,0.03770172,195.21,195.18,0.03422358]
[1739685395264,3.62300172,195.21,195.18,0.03422358]
[1739685395466,0.03770172,195.21,195.18,0.03422358]
[1739685397064,3.5855,195.2,195.18,0.03422358]
[1739685399069,3.62300172,195.21,195.18,0.03422358]
[1739685399264,0.03770172,195.21,195.18,0.03422358]
[1739685399967,3.62300172,195.21,195.18,0.03422358]
[1739685401971,0.03770172,195.21,195.18,0.03422358]
[1739685402272,3.5857,195.2,195.18,0.03422358]
[1739685406074,0.03770172,195.21,195.18,0.03422358]
[1739685406264,3.62300172,195.21,195.18,0.03422358]
[1739685407076,0.03770172,195.21,195.18,0.03422358]
[1739685408876,3.5855,195.2,195.18,0.03422358]
[1739685413778,0.03770172,195.21,195.18,0.03422358]
[1739685415380,3.5855,195.2,195.18,0.03422358]
[1739685418874,0.03770172,195.21,195.18,0.03422358]
[1739685419080,3.5857,195.19,195.18,0.03422358]
[1739685420382,3.62300172,195.21,195.18,0.03422358]
[1739685423080,3.5855,195.2,195.18,0.03422358]
[1739685424981,0.03770172,195.21,195.18,0.03422358]
[1739685426085,3.62310172,195.21,195.18,0.03422358]
[1739685428089,3.5855,195.2,195.18,0.03422358]
[1739685432394,3.62300172,195.21,195.18,0.03422358]
[1739685434391,0.03770172,195.21,195.18,0.03422358]
[1739685434594,3.5855,195.2,195.18,0.03422358]
[1739685435597,0.03770172,195.21,195.18,0.03422358]
[1739685437997,0.03770172,195.21,195.18,3.62002358]
[1739685438599,0.03770172,195.21,195.18,0.03422358]
[1739685440198,0.03770172,195.21,195.18,3.62012358]
[1739685443302,0.03770172,195.21,195.18,0.03422358]
[1739685443498,0.03770172,195.21,195.18,7.27400506]
[1739685443706,0.03770172,195.21,195.2,7.23978148]
[1739685444199,0.03770172,195.21,195.2,10.82528148]
[1739685445001,0.03770172,195.21,195.2,7.23978148]
[1739685446499,0.03770172,195.21,195.19,3.5857]
[1739685453709,0.03770172,195.21,195.18,7.27400506]
[1739685453912,0.03770172,195.21,195.2,3.5855]
[1739685454811,0.03770172,195.21,195.19,3.5857]
[1739685456715,0.03770172,195.21,195.2,3.5855]
[1739685462813,0.03770172,195.21,195.19,3.5857]
[1739685463114,0.03770172,195.21,195.18,0.03422358]
[1739685464015,0.03770172,195.21,195.18,3.62002358]
[1739685464416,0.03770172,195.21,195.18,10.85980506]
[1739685468917,0.03770172,195.21,195.19,3.5856]
[1739685510040,0.03770172,195.21,195.18,0.03422358]
[1739685510241,0.03770172,195.21,195.18,3.62002358]
[1739685511944,0.03770172,195.21,195.18,0.03422358]
[1739685513046,3.62320172,195.21,195.18,0.03422358]
[1739685517051,0.03770172,195.21,195.18,3.62012358]
[1739685517252,0.03770172,195.21,195.18,0.03422358]
[1739685518154,3.5855,195.2,195.18,0.03422358]
[1739685520557,0.03770172,195.21,195.18,0.03422358]
[1739685522157,0.03770172,195.21,195.18,3.62012358]
[1739685525654,0.03770172,195.21,195.18,7.27400506]
[1739685525862,0.03770172,195.21,195.19,3.5855]
[1739685527260,0.03770172,195.21,195.18,7.27400506]
[1739685527460,0.03770172,195.21,195.18,10.85980506]
[1739685529761,0.03770172,195.21,195.18,7.27400506]
[1739685529963,0.03770172,195.21,195.19,3.5857]
[1739685535353,0.03770172,195.21,195.18,7.27400506]
[1739685535562,0.03770172,195.21,195.2,10.82528148]
[1739685535856,8.83998148,195.3,195.2,7.23978148]
[1739685536059,15.57998148,195.3,195.23,7.23978148]
[1739685536261,8.83998148,195.3,195.23,7.23978148]
[1739685536961,0.03226797,195.28,195.25,0.03303411]
[1739685541264,3.61626797,195.28,195.25,0.03303411]
[1739685544464,0.03226797,195.28,195.25,7.27281559]
[1739685545066,0.03226797,195.28,195.26,3.5844]
[1739685546367,0.03226797,195.28,195.25,10.85731559]
[1739685547972,0.03226797,195.28,195.25,7.27281559]
[1739685548767,0.03226797,195.28,195.25,10.85731559]
[1739685549570,3.61636797,195.28,195.25,0.03303411]
[1739685564694,0.03226797,195.28,195.25,0.03303411]
[1739685564893,3.5844,195.26,195.25,0.03303411]
[1739685568394,10.82418148,195.26,195.25,0.03303411]
[1739685579710,3.5842,195.27,195.25,0.03303411]
[1739685581503,3.5844,195.26,195.25,0.03303411]
[1739685581703,10.82418148,195.26,195.25,0.03303411]
[1739685589312,7.23978148,195.26,195.19,10.82548148]
[1739685589513,3.5848,195.24,195.19,10.82548148]
[1739685590611,0.03696101,195.23,195.2,0.03851111]
[1739685597614,3.62196101,195.23,195.2,0.03851111]
[1739685597914,0.03696101,195.23,195.2,0.03851111]
[1739685599017,3.5852,195.22,195.2,0.03851111]
[1739685599813,3.5853,195.21,195.2,0.03851111]
[1739685612930,3.5853,195.21,195.2,1.111e-05]
[1739685614231,3.5866,195.14,195.09,13.84378148]
[1739685614431,3.5866,195.14,195.09,10.25638148]
[1739685614629,7.23978148,195.16,195.09,10.25638148]
[1739685615332,3.5871,195.12,195.09,10.25638148]
[1739685615529,3.5871,195.12,195.11,0.03794554]
[1739685616127,10.82688148,195.12,195.11,0.03794554]
[1739685618440,0.03728329,195.14,195.11,0.03794554]
[1739685618934,0.03728329,195.14,195.11,7.27772702]
[1739685619135,0.03728329,195.14,195.11,0.03794554]
[1739685622931,3.5868,195.13,195.11,0.03794554]
[1739685623740,0.03728329,195.14,195.11,0.03794554]
[1739685628335,0.03728329,195.14,195.11,3.62504554]
[1739685628942,0.03728329,195.14,195.11,0.03794554]
[1739685629146,3.62388329,195.14,195.11,0.03794554]
[1739685631143,3.587,195.12,195.11,0.03794554]
[1739685632642,0.03728329,195.14,195.11,0.03794554]
[1739685634141,3.62388329,195.14,195.11,0.03794554]
[1739685634741,0.03728329,195.14,195.11,0.03794554]
[1739685635343,0.03728329,195.14,195.11,3.62504554]
[1739685635544,0.03728329,195.14,195.11,7.27772702]
[1739685635742,0.03728329,195.14,195.13,7.23978148]
[1739685637145,0.03728329,195.14,195.13,10.82658148]
[1739685638948,35.65168184,195.19,195.13,7.23978148]
[1739685639143,200.23978148,195.25,195.17,7.23978148]
[1739685639349,7.23978148,195.25,195.17,7.23978148]
[1739685639545,7.23978148,195.21,195.15,10.82598148]
[1739685639848,7.23978148,195.21,195.15,3.5862]
[1739685640247,0.03634339,195.2,195.16,0.03904048]
[1739685641147,3.62194339,195.2,195.16,0.03904048]
[1739685645652,0.03634339,195.2,195.16,0.03904048]
[1739685645946,3.5859,195.18,195.16,0.03904048]
[1739685646250,7.23978148,195.17,195.16,0.03904048]
[1739685646443,10.82578148,195.17,195.16,0.03904048]
[1739685648349,3.5867,195.14,195.09,7.23978148]
[1739685649152,3.5867,195.14,195.09,10.82718148]
[1739685649556,0.03732093,195.13,195.1,0.0356322]
[1739685649746,3.62412093,195.13,195.1,0.0356322]
[1739685650053,0.03732093,195.13,195.1,0.0356322]
[1739685650449,3.587,195.12,195.1,0.0356322]
[1739685655763,3.5871,195.11,195.1,0.0356322]
[1739685659455,3.587,195.12,195.1,0.0356322]
[1739685659865,7.27710241,195.13,195.1,0.0356322]
[1739685660058,0.03732093,195.13,195.1,0.0356322]
[1739685661063,3.62412093,195.13,195.1,0.0356322]
[1739685661563,0.03732093,195.13,195.1,0.0356322]
[1739685664667,3.62412093,195.13,195.1,0.0356322]
[1739685670371,0.03732093,195.13,195.1,0.0356322]
[1739685671369,0.03732093,195.13,195.11,3.5871]
[1739685671571,0.03732093,195.13,195.1,0.0356322]
[1739685673069,0.03732093,195.13,195.1,3.6229322]
[1739685674867,0.03732093,195.13,195.1,0.0356322]
[1739685675066,0.03732093,195.13,195.11,3.5871]
[1739685675861,0.03732093,195.13,195.1,0.0356322]
[1739685676670,0.03732093,195.13,195.12,3.587]
[1739685678874,193.0,195.18,195.15,3.5864]
[1739685679074,7.23978148,195.25,195.16,7.23978148]
[1739685679280,7.23978148,195.25,195.18,7.23978148]
[1739685679476,3.5851,195.22,195.17,3.5859]
[1739685679776,7.23978148,195.23,195.14,7.23978148]
[1739685679972,7.27518795,195.21,195.18,0.03227742]
[1739685680667,3.5855,195.2,195.18,0.03227742]
[1739685682175,7.27518795,195.21,195.18,0.03227742]
[1739685682370,10.86048795,195.21,195.18,0.03227742]
[1739685682575,0.03540647,195.21,195.18,0.03227742]
[1739685684166,3.62070647,195.21,195.18,0.03227742]
[1739685684775,0.03540647,195.21,195.18,0.03227742]
[1739685685679,0.03540647,195.21,195.18,3.61817742]
[1739685694580,0.03540647,195.21,195.18,0.03227742]
[1739685694779,3.5855,195.2,195.18,0.03227742]
[1739685697481,3.5857,195.19,195.18,0.03227742]
[1739685698481,10.82548148,195.19,195.18,0.03227742]
[1739685701290,7.23978148,195.19,195.18,0.03227742]
[1739685701990,10.82548148,195.19,195.18,0.03227742]
[1739685702489,3.5857,195.19,195.18,0.03227742]
[1739685704992,7.27518795,195.21,195.18,0.03227742]
[1739685705193,3.5855,195.2,195.18,0.03227742]
[1739685705389,7.27518795,195.21,195.18,0.03227742]
[1739685707196,3.5857,195.19,195.18,0.03227742]
[1739685707594,10.82548148,195.19,195.18,0.03227742]
[1739685719611,3.5855,195.2,195.18,0.03227742]
[1739685720506,10.86048795,195.21,195.18,0.03227742]
[1739685720811,0.03540647,195.21,195.18,0.03227742]
[1739685722108,3.5855,195.2,195.18,0.03227742]
[1739685722312,0.03540647,195.21,195.18,0.03227742]
[1739685722710,3.62070647,195.21,195.18,0.03227742]
[1739685722905,0.03540647,195.21,195.18,0.03227742]
[1739685723407,0.03540647,195.21,195.18,7.2720589]
[1739685724106,0.03540647,195.21,195.19,3.5857]
[1739685725108,0.03540647,195.21,195.18,7.2720589]
[1739685725314,0.03540647,195.21,195.2,3.5855]
[1739685727713,0.03540647,195.21,195.18,7.2720589]
[1739685727913,0.03540647,195.21,195.18,10.8577589]
[1739685728810,0.03540647,195.21,195.18,3.61797742]
[1739685732312,0.03540647,195.21,195.18,0.03227742]
[1739685732516,7.27518795,195.21,195.18,0.03227742]
[1739685733119,3.5855,195.2,195.18,0.03227742]
[1739685733312,7.27518795,195.21,195.18,0.03227742]
[1739685734016,3.5857,195.19,195.18,0.03227742]
[1739685737115,3.5855,195.2,195.18,0.03227742]
[1739685743223,3.5857,195.19,195.18,0.03227742]
[1739685747626,7.27518795,195.21,195.18,0.03227742]
[1739685747627,3.5855,195.2,195.18,0.03227742]
[1739685750031,10.86048795,195.21,195.18,0.03227742]
[1739685752028,0.03540647,195.21,195.18,3.61797742]
[1739685752925,0.03540647,195.21,195.18,0.03227742]
[1739685753327,0.03540647,195.21,195.18,7.2720589]
[1739685753632,0.03540647,195.21,195.19,3.5855]
[1739685762127,0.03540647,195.21,195.19,3.5857]
[1739685762333,0.03540647,195.21,195.18,7.2720589]
[1739685762735,0.03540647,195.21,195.19,3.5857]
[1739685764648,0.03540647,195.21,195.18,7.2720589]
[1739685764940,0.03540647,195.21,195.2,3.5855]
[1739685766139,0.03540647,195.21,195.2,10.82528148]
[1739685767738,3.5841,195.28,195.23,3.5849]
[1739685768748,3.62035901,195.27,195.24,0.03872793]
[1739685770444,0.03605901,195.27,195.24,0.03872793]
[1739685771841,0.03605901,195.27,195.24,3.62342793]
[1739685772948,0.03605901,195.27,195.25,3.5846]
[1739685778047,0.03605901,195.27,195.25,6.6747]
[1739685781744,0.03605901,195.27,195.25,3.0901]
[1739685781951,0.03605901,195.27,195.24,0.03872793]
[1739685783149,0.03605901,195.27,195.24,3.62352793]
[1739685783547,3.5844,195.26,195.24,0.03872793]
[1739685785153,3.62025901,195.27,195.24,0.03872793]
[1739685787254,0.03605901,195.27,195.24,0.03872793]
[1739685787554,0.03605901,195.27,195.24,3.62342793]
[1739685787855,0.03605901,195.27,195.24,0.03872793]
[1739685788062,0.03605901,195.27,195.24,7.27850941]
[1739685790259,0.03605901,195.27,195.24,10.86320941]
[1739685802864,0.03605901,195.27,195.26,10.82418148]
[1739685804767,0.03605901,195.27,195.24,7.27850941]
[1739685810165,0.03605901,195.27,195.25,3.5846]
[1739685810463,0.03605901,195.27,195.24,7.27850941]
[1739685810669,0.03605901,195.27,195.25,3.5844]
[1739685811569,0.03605901,195.27,195.26,3.5844]
[1739685814070,0.03605901,195.27,195.26,10.82418148]
[1739685814274,8.76168148,195.37,195.26,7.23978148]
[1739685814567,8.76168148,195.37,195.29,7.23978148]
[1739685814773,3.5826,195.36,195.29,7.23978148]
[1739685815466,0.03639371,195.34,195.31,0.03401305]
[1739685816066,0.03639371,195.34,195.31,3.61751305]
[1739685816274,0.03639371,195.34,195.31,7.27379453]
[1739685817069,0.03639371,195.34,195.32,3.5833]
[1739685817769,0.03639371,195.34,195.31,10.85729453]
[1739685818874,0.03639371,195.34,195.31,7.27379453]
[1739685819072,0.03639371,195.34,195.32,3.5832]
[1739685819574,0.03639371,195.34,195.33,10.82288148]
[1739685826181,0.03639371,195.34,195.31,0.03401305]
[1739685826980,0.03639371,195.34,195.31,7.27379453]
[1739685828073,0.03639371,195.34,195.31,10.85729453]
[1739685829378,0.03639371,195.34,195.31,3.61751305]
[1739685829579,0.03639371,195.34,195.33,7.23978148]
[1739685831086,0.03639371,195.34,195.33,10.82288148]
[1739685831782,1.6599,195.42,195.35,3.5827]
[1739685832087,1.6599,195.42,195.35,10.82248148]
[1739685832287,3.582,195.4,195.35,7.23978148]
[1739685832691,1.6599,195.42,195.35,7.23978148]
[1739685832885,0.03529982,195.39,195.36,0.03457244]
[1739685834087,3.5823,195.38,195.36,0.03457244]
[1739685835993,0.03529982,195.39,195.36,0.03457244]
[1739685836190,3.5824,195.37,195.36,0.03457244]
[1739685838396,3.61749982,195.39,195.36,0.03457244]
[1739685838598,0.03529982,195.39,195.36,0.03457244]
[1739685839898,3.5824,195.37,195.36,0.03457244]
[1739685852205,3.61749982,195.39,195.36,0.03457244]
[1739685856304,0.03529982,195.39,195.36,0.03457244]
[1739685857010,3.5822,195.38,195.36,0.03457244]
[1739685860716,0.03529982,195.39,195.36,0.03457244]
[1739685860717,3.5824,195.37,195.36,0.03457244]
[1739685864618,3.5822,195.38,195.36,0.03457244]
[1739685866915,7.23978148,195.37,195.31,7.23978148]
[1739685867119,10.82228148,195.37,195.3,3.5837]
[1739685868213,0.03391434,195.35,195.32,0.03377543]
[1739685869513,7.27369582,195.35,195.32,0.03377543]
[1739685870322,0.03391434,195.35,195.32,0.03377543]
[1739685871222,0.03391434,195.35,195.32,3.61687543]
[1739685871624,0.03391434,195.35,195.32,0.03377543]
[1739685871825,0.03391434,195.35,195.33,3.583]
[1739685874219,0.03391434,195.35,195.32,0.03377543]
[1739685874427,0.03391434,195.35,195.34,3.5829]
[1739685892849,1.5635,195.44,195.33,10.52428148]
[1739685892850,7.23978148,195.45,195.33,10.52428148]
[1739685893050,7.23978148,195.45,195.38,10.82188148]
[1739685893241,7.23978148,195.45,195.38,7.23978148]
[1739685893546,13.95978148,195.45,195.38,7.23978148]
[1739685894043,3.61528832,195.43,195.4,0.03545358]
[1739685895852,3.5815,195.42,195.4,0.03545358]
[1739685896853,3.5816,195.41,195.4,0.03545358]
[1739685900254,0.03398832,195.43,195.4,0.03545358]
[1739685900953,3.5816,195.41,195.4,0.03545358]
[1739685902960,3.5815,195.42,195.4,0.03545358]
[1739685905657,3.5816,195.41,195.4,0.03545358]
[1739685909268,10.82138148,195.41,195.4,0.03545358]
[1739685914866,3.5816,195.41,195.4,0.03545358]
[1739685915976,7.23978148,195.41,195.33,3.2845]
[1739685916175,7.23978148,195.39,195.32,7.23978148]
[1739685916375,7.23978148,195.39,195.32,10.82298148]
[1739685916777,3.5828,195.35,195.32,7.23978148]
[1739685917270,0.03405122,195.35,195.34,7.23978148]
[1739685917470,3.5815,195.42,195.34,7.23978148]
[1739685917668,3.5815,195.42,195.36,7.23978148]
[1739685918476,3.5815,195.42,195.37,0.03511963]
[1739685918777,0.03581135,195.41,195.37,0.03511963]
[1739685925182,3.61751135,195.41,195.37,0.03511963]
[1739685927484,0.03581135,195.41,195.37,0.03511963]
[1739685930687,0.03581135,195.41,195.37,3.61741963]
[1739685931886,3.61751135,195.41,195.37,3.61741963]
[1739685934089,0.03581135,195.41,195.38,3.5822]
[1739685934987,0.03581135,195.41,195.38,7.23978148]
[1739685935188,0.03581135,195.41,195.4,3.5818]
[1739685938296,0.03581135,195.41,195.38,10.82188148]
[1739685938993,0.03581135,195.41,195.38,7.23978148]
[1739685939189,0.03581135,195.41,195.4,7.23978148]
[1739685939391,193.0,195.47,195.4,7.23978148]
[1739685939596,30.5977534,195.48,195.42,7.23978148]
[1739685939892,3.5808,195.46,195.42,7.23978148]
[1739685940093,30.5977534,195.48,195.42,7.23978148]
[1739685940289,3.5804,195.48,195.44,7.23978148]
[1739685940593,0.03605817,195.48,195.44,7.27641983]
[1739685945400,3.5805,195.47,195.44,0.03663835]
[1739685946099,3.61645817,195.48,195.44,0.03663835]
[1739685947291,3.5808,195.46,195.44,0.03663835]
[1739685948600,0.03605817,195.48,195.44,0.03663835]
[1739685948897,3.5806,195.47,195.44,0.03663835]
[1739685949890,0.03605817,195.48,195.44,0.03663835]
[1739685950193,3.5809,195.46,195.44,0.03663835]
[1739685957502,3.5809,195.45,195.44,0.03663835]
[1739685960805,10.82068148,195.45,195.44,0.03663835]
[1739685961005,3.5819,195.4,195.36,7.23978148]
[1739685961407,7.23978148,195.43,195.36,7.23978148]
[1739685961706,3.5816,195.42,195.36,10.82228148]
[1739685962208,3.61604648,195.41,195.37,0.03387303]
[1739685963506,0.03434648,195.41,195.37,3.61627303]
[1739685966712,0.03434648,195.41,195.37,0.03387303]
[1739685968715,0.03434648,195.41,195.38,3.5822]
[1739685969014,0.03434648,195.41,195.38,7.23978148]
[1739685969213,0.03434648,195.41,195.4,3.5818]
[1739685970118,0.03434648,195.41,195.4,10.82158148]
[1739685979819,193.0,195.48,195.47,3.5805]
[1739685980119,3.5797,195.52,195.46,7.23978148]
[1739685980618,3.5798,195.51,195.46,10.82048148]
[1739685980816,0.03810288,195.5,195.47,0.03561762]
[1739685981018,0.03810288,195.5,195.48,7.23978148]
[1739685983017,0.03810288,195.5,195.47,0.03561762]
[1739685986321,7.23978148,195.49,195.47,0.03561762]
[1739685987022,3.5804,195.48,195.47,0.03561762]
[1739685989926,3.5815,195.42,195.4,7.23978148]
[1739685990118,7.23978148,195.46,195.38,7.23978148]
[1739685990521,3.5814,195.43,195.38,7.23978148]
[1739685991028,0.03911551,195.42,195.39,0.03774352]
[1739685993430,3.5818,195.4,195.39,0.03774352]
[1739685995030,0.03911551,195.42,195.39,0.03774352]
[1739685995232,3.5817,195.41,195.39,0.03774352]
[1739685998126,0.03911551,195.42,195.39,0.03774352]
[1739685998330,0.03911551,195.42,195.4,7.23978148]
[1739686005444,0.03911551,195.42,195.41,3.5816]
[1739686006544,0.03911551,195.42,195.4,7.23978148]
[1739686010050,0.03911551,195.42,195.4,10.82158148]
[1739686010250,3.5818,195.4,195.39,0.03774352]
[1739686024063,10.82158148,195.4,195.39,4.352e-05]
[1739686044373,3.5832,195.33,195.31,3.2228]
[1739686045687,0.03606459,195.34,195.31,3.2228]
[1739686045979,3.61896459,195.34,195.31,3.2228]
[1739686049486,3.5833,195.33,195.31,3.2228]
[1739686053989,3.5835,195.31,195.3,0.03393554]
[1739686065603,3.5842,195.28,195.23,10.82468148]
[1739686066805,0.03898481,195.27,195.24,0.03273721]
[1739686066995,0.03898481,195.27,195.25,7.23978148]
[1739686067206,193.0,195.33,195.25,7.23978148]
[1739686067493,193.0,195.33,195.28,7.23978148]
[1739686067702,193.0,195.33,195.28,10.82368148]
[1739686067903,193.0,195.33,195.28,7.23978148]
[1739686068303,3.61947178,195.32,195.29,0.03511265]
[1739686069596,3.5835,195.31,195.29,0.03511265]
[1739686070307,3.5837,195.3,195.29,0.03511265]
[1739686070808,10.82348148,195.3,195.29,0.03511265]